fUSD/lending_fUSD_20250530
["ID","MTS","AMOUNT","RATE_DAILY","PERIOD"]
[363192531,1748619120962,-489.31,0.00024383,2]
[363192532,1748619120973,-742.91,0.00024383,2]
[363192533,1748619120986,-802.33,0.00024383,2]
[363192534,1748619120997,-937.93,0.00024383,2]
[363192535,1748619121007,-2531.82,0.00024383,2]
[363192536,1748619121019,-420.0,0.00024383,2]
[363192537,1748619121031,-420.0,0.00024383,2]
[363192538,1748619121042,-830.27,0.00024383,2]
[363192539,1748619121054,-703.73,0.00024383,2]
[363192540,1748619121065,-420.0,0.00024383,2]
[363192541,1748619121076,-7051.39,0.00024383,2]
[363192542,1748619121088,-622.77,0.00024383,2]
[363192543,1748619121099,-1538.8,0.00024383,2]
[363192544,1748619121110,-961.82,0.00024383,2]
[363192545,1748619121121,-19030.44,0.00024383,2]
[363192546,1748619121133,-1325.56,0.00024383,2]
[363192547,1748619121144,-2716.47,0.00024383,2]
[363192548,1748619121156,-420.0,0.00024383,2]
[363192549,1748619121167,-446.78455748,0.00024383,2]
[363192550,1748619121179,-702.43,0.00024383,2]
[363192551,1748619121191,-735.86,0.00024383,2]
[363192552,1748619121202,-760.22,0.00024383,2]
[363192553,1748619121213,-2783.11,0.00024383,2]
[363192554,1748619121226,-676.42,0.00024383,2]
[363192555,1748619121238,-734.54,0.00024383,2]
[363192556,1748619121249,-1264.47,0.00024383,2]
[363192557,1748619121261,-1663.09,0.00024383,2]
[363192558,1748619121273,-6908.64,0.00024383,2]
[363192559,1748619121284,-450.49,0.00024383,2]
[363192560,1748619121296,-1803.22,0.00024383,2]
[363192561,1748619121308,-420.0,0.00024383,2]
[363192562,1748619121319,-807.7,0.00024383,2]
[363192563,1748619121331,-3069.28,0.00024383,2]
[363192564,1748619121343,-466.47,0.00024383,2]
[363192565,1748619121355,-420.0,0.00024383,2]
[363192566,1748619121366,-420.0,0.00024383,2]
[363192567,1748619121378,-150.0,0.00024425,2]
[363192568,1748619121389,-189.464106,0.00024425,2]
[363192569,1748619121400,-980.858598,0.00024425,2]
[363192570,1748619121411,-1078.45113,0.00024425,2]
[363192571,1748619121422,-158.59324495,0.00024447,2]
[363192572,1748619121433,-4049.5936825,0.00024452,11]
[363192573,1748619121444,-16190.27,0.000245,10]
[363192574,1748619121456,-2110.0,0.000245,2]
[363192575,1748619121467,-225.0,0.0002453,2]
[363192576,1748619121478,-634.0,0.00024548,2]
[363192577,1748619121489,-801.0,0.00024548,2]
[363192578,1748619121501,-1268.0,0.00024548,2]
[363192579,1748619121512,-924.0,0.00024548,2]
[363192580,1748619121523,-588.0,0.00024548,2]
[363192581,1748619121535,-1466.0,0.00024548,2]
[363192582,1748619121546,-556.0,0.00024548,2]
[363192583,1748619121557,-1155.0,0.00024548,2]
[363192584,1748619121569,-941.0,0.00024548,2]
[363192585,1748619121580,-155.0,0.00024548,2]
[363192586,1748619121592,-155.0,0.00024548,2]
[363192587,1748619121604,-1314.0,0.00024548,2]
[363192588,1748619121616,-928.87910436,0.00024557,2]
[363192589,1748619121628,-261038.46,0.000246,7]
[363192590,1748619121640,-9509.33,0.000246,7]
[363192591,1748619121652,-150.0,0.00024625,2]
[363192592,1748619121663,-150.0,0.00024625,2]
[363192593,1748619121675,-980.858598,0.00024625,2]
[363192594,1748619121687,-980.858598,0.00024625,2]
[363192595,1748619121698,-1078.45113,0.00024625,2]
[363192596,1748619121709,-1078.45113,0.00024625,2]
[363192597,1748619121721,-420.0,0.00024657,2]
[363192598,1748619121732,-420.0,0.00024657,2]
[363192599,1748619121744,-579.42,0.00024657,2]
[363192600,1748619121755,-441.8,0.00024657,2]
[363192601,1748619121768,-591.36,0.00024657,2]
[363192602,1748619121779,-468.16,0.00024657,2]
[363192603,1748619121794,-451.1,0.00024657,2]
[363192604,1748619121809,-307.01529597,0.00024657,2]
[363192605,1748619121820,-420.0,0.00024657,2]
[363192606,1748619121831,-420.3,0.00024657,2]
[363192607,1748619121843,-420.0,0.00024657,2]
[363192608,1748619121855,-853.41,0.00024657,2]
[363192609,1748619121866,-420.0,0.00024657,2]
[363192610,1748619121879,-420.0,0.00024657,2]
[363192611,1748619121891,-420.0,0.00024657,2]
[363192613,1748619121903,-525.07,0.00024657,2]
[363192614,1748619121914,-502.76,0.00024657,2]
[363192615,1748619121926,-1167.56,0.00024657,2]
[363192616,1748619121937,-769.78,0.00024657,2]
[363192617,1748619121948,-499.23,0.00024657,2]
[363192619,1748619121959,-420.0,0.00024657,2]
[363192620,1748619121970,-531.83,0.00024657,2]
[363192621,1748619121982,-420.0,0.00024657,2]
[363192622,1748619121993,-479.53,0.00024657,2]
[363192623,1748619122005,-753.24,0.00024657,2]
[363192624,1748619122020,-265.73,0.00024657,2]
[363192625,1748619122051,-476.72,0.00024657,2]
[363192626,1748619122101,-420.0,0.00024657,2]
[363192627,1748619122148,-571.1,0.00024657,2]
[363192628,1748619122192,-420.0,0.00024657,2]
[363192629,1748619122234,-908.97,0.00024657,2]
[363192630,1748619122268,-420.0,0.00024657,2]
[363192631,1748619122310,-420.0,0.00024657,2]
[363192632,1748619122321,-420.0,0.00024657,2]
[363192633,1748619122333,-521.55653769,0.00024657,2]
[363192634,1748619122345,-432.46,0.00024657,2]
[363192635,1748619122859,-420.0,0.00024657,2]
[363192636,1748619122869,-420.0,0.00024657,2]
[363192637,1748619122879,-420.0,0.00024657,2]
[363192638,1748619122891,-420.0,0.00024657,2]
[363192639,1748619122900,-420.0,0.00024657,2]
[363192640,1748619122910,-2098.6,0.00024657,2]
[363192641,1748619122919,-420.0,0.00024657,2]
[363192642,1748619122928,-420.0,0.00024657,2]
[363192643,1748619122938,-490.07,0.00024657,2]
[363192644,1748619122947,-770.69,0.00024657,2]
[363192645,1748619122957,-420.0,0.00024657,2]
[363192646,1748619122967,-890.15,0.00024657,2]
[363192647,1748619122976,-543.23335428,0.00024657,2]
[363192648,1748619122987,-420.86,0.00024657,2]
[363192649,1748619122996,-426.87,0.00024657,2]
[363192650,1748619123007,-420.0,0.00024657,2]
[363192651,1748619123016,-424.91,0.00024657,2]
[363192652,1748619123026,-429.06,0.00024657,2]
[363192653,1748619123036,-420.0,0.00024657,2]
[363192654,1748619123046,-420.0,0.00024657,2]
[363192655,1748619123056,-758.53,0.00024657,2]
[363192656,1748619123067,-420.0,0.00024657,2]
[363192657,1748619123077,-772.94,0.00024657,2]
[363192658,1748619123087,-420.0,0.00024657,2]
[363192659,1748619123097,-350.25293178,0.00024657,2]
[363192660,1748619123108,-427.85,0.00024657,2]
[363192661,1748619123118,-420.0,0.00024657,2]
[363192662,1748619123128,-420.0,0.00024657,2]
[363192663,1748619123138,-456.87,0.00024657,2]
[363192664,1748619123148,-420.0,0.00024657,2]
[363192665,1748619123158,-420.0,0.00024657,2]
[363192666,1748619123168,-420.0,0.00024657,2]
[363192667,1748619123178,-420.0,0.00024657,2]
[363192668,1748619123188,-420.0,0.00024657,2]
[363192669,1748619123199,-420.0,0.00024657,2]
[363192670,1748619123209,-420.0,0.00024657,2]
[363192671,1748619123219,-420.0,0.00024657,2]
[363192672,1748619123229,-420.0,0.00024657,2]
[363192673,1748619123238,-777.89,0.00024657,2]
[363192674,1748619123248,-1819.65,0.00024657,2]
[363192675,1748619123257,-863.65,0.00024657,2]
[363192676,1748619123267,-420.0,0.00024657,2]
[363192677,1748619123277,-1212.65,0.00024657,2]
[363192678,1748619123289,-1175.81,0.00024657,2]
[363192679,1748619123299,-553.05,0.00024657,2]
[363192680,1748619123309,-796.08,0.00024657,2]
[363192681,1748619123319,-420.0,0.00024657,2]
[363192682,1748619123329,-523.03,0.00024657,2]
[363192683,1748619123338,-501.69,0.00024657,2]
[363192684,1748619123348,-1811.35,0.00024657,2]
[363192685,1748619123357,-420.0,0.00024657,2]
[363192686,1748619123367,-420.0,0.00024657,2]
[363192687,1748619123376,-822.17,0.00024657,2]
[363192688,1748619123386,-496.62,0.00024657,2]
[363192689,1748619123396,-641.0,0.00024657,2]
[363192690,1748619123406,-847.29,0.00024657,2]
[363192691,1748619123416,-420.0,0.00024657,2]
[363192692,1748619123426,-420.0,0.00024657,2]
[363192693,1748619123436,-1102.55,0.00024657,2]
[363192694,1748619123446,-443.43,0.00024657,2]
[363192695,1748619123456,-420.0,0.00024657,2]
[363192696,1748619123466,-443.13,0.00024657,2]
[363192697,1748619123476,-751.91,0.00024657,2]
[363192698,1748619123487,-420.0,0.00024657,2]
[363192699,1748619123498,-420.0,0.00024657,2]
[363192700,1748619123507,-420.0,0.00024657,2]
[363192701,1748619123517,-518.42,0.00024657,2]
[363192702,1748619123528,-1199.0,0.00024657,2]
[363192703,1748619123541,-420.0,0.00024657,2]
[363192704,1748619123551,-841.83,0.00024657,2]
[363192705,1748619123562,-1711.43,0.00024657,2]
[363192706,1748619123573,-508.53,0.00024657,2]
[363192707,1748619123584,-948.67,0.00024657,2]
[363192708,1748619123594,-420.0,0.00024657,2]
[363192709,1748619123606,-610.77,0.00024657,2]
[363192710,1748619123617,-2171.03,0.00024657,2]
[363192711,1748619123629,-420.0,0.00024657,2]
[363192712,1748619123640,-945.97,0.00024657,2]
[363192713,1748619123651,-572.48,0.00024657,2]
[363192714,1748619123662,-1319.71,0.00024657,2]
[363192715,1748619123674,-456.76,0.00024657,2]
[363192716,1748619123685,-1456.24,0.00024657,2]
[363192717,1748619123695,-636.09,0.00024657,2]
[363192718,1748619123706,-743.92,0.00024657,2]
[363192719,1748619123716,-853.5,0.00024657,2]
[363192720,1748619123726,-1258.56,0.00024657,2]
[363192721,1748619123737,-652.14,0.00024657,2]
[363192722,1748619123747,-1419.49,0.00024657,2]
[363192723,1748619123757,-569.93,0.00024657,2]
[363192724,1748619123767,-584.74,0.00024657,2]
[363192725,1748619123777,-755.51,0.00024657,2]
[363192726,1748619123790,-582.04,0.00024657,2]
[363192727,1748619123805,-420.0,0.00024657,2]
[363192728,1748619123815,-420.0,0.00024657,2]
[363192729,1748619123826,-420.0,0.00024657,2]
[363192730,1748619123836,-781.6,0.00024657,2]
[363192731,1748619123846,-1041.01,0.00024657,2]
[363192732,1748619123858,-1369.52,0.00024657,2]
[363192733,1748619123868,-474.65,0.00024657,2]
[363192734,1748619123878,-463.6,0.00024657,2]
[363192735,1748619123890,-1379.11,0.00024657,2]
[363192736,1748619123901,-420.0,0.00024657,2]
[363192737,1748619123911,-420.0,0.00024657,2]
[363192738,1748619123921,-666.7,0.00024657,2]
[363192739,1748619123931,-1319.43,0.00024657,2]
[363192740,1748619123941,-576.82,0.00024657,2]
[363192741,1748619123951,-693.89,0.00024657,2]
[363192742,1748619123961,-741.8,0.00024657,2]
[363192743,1748619123971,-522.68534186,0.00024657,30]
[363192744,1748619123983,-561.65,0.00024657,2]
[363192745,1748619123994,-1160.92,0.00024657,2]
[363192746,1748619124004,-472.93,0.00024657,2]
[363192747,1748619124014,-1207.82,0.00024657,2]
[363192748,1748619124025,-1166.17,0.00024657,2]
[363192749,1748619124035,-1168.26,0.00024657,2]
[363192750,1748619124049,-420.0,0.00024657,2]
[363192751,1748619124060,-420.0,0.00024657,2]
[363192752,1748619124070,-466.98,0.00024657,2]
[363192753,1748619124080,-784.43,0.00024657,2]
[363192754,1748619124089,-723.56,0.00024657,2]
[363192755,1748619124100,-1364.89,0.00024657,2]
[363192756,1748619124110,-801.75,0.00024657,2]
[363192757,1748619124121,-635.16,0.00024657,2]
[363192758,1748619124132,-604.61,0.00024657,2]
[363192759,1748619124142,-587.51,0.00024657,2]
[363192760,1748619124152,-1137.25,0.00024657,2]
[363192761,1748619124163,-786.55,0.00024657,2]
[363192762,1748619124174,-862.94,0.00024657,2]
[363192763,1748619124184,-420.0,0.00024657,2]
[363192764,1748619124194,-523.95,0.00024657,2]
[363192765,1748619124204,-1160.03,0.00024657,2]
[363192766,1748619124214,-673.65,0.00024657,2]
[363192767,1748619124224,-931.25,0.00024657,2]
[363192768,1748619124235,-420.0,0.00024657,2]
[363192769,1748619124245,-552.42,0.00024657,2]
[363192770,1748619124255,-459.7,0.00024657,2]
[363192771,1748619124264,-1724.07,0.00024657,2]
[363192772,1748619124274,-420.0,0.00024657,2]
[363192773,1748619124285,-600.48,0.00024657,2]
[363192774,1748619124299,-726.29,0.00024657,2]
[363192775,1748619124309,-472.86,0.00024657,2]
[363192776,1748619124319,-420.0,0.00024657,2]
[363192777,1748619124330,-1073.36,0.00024657,2]
[363192778,1748619124339,-832.22,0.00024657,2]
[363192779,1748619124349,-576.09,0.00024657,2]
[363192780,1748619124359,-1371.43,0.00024657,2]
[363192781,1748619124370,-1079.44,0.00024657,2]
[363192782,1748619124381,-538.33,0.00024657,2]
[363192783,1748619124391,-971.8,0.00024657,2]
[363192784,1748619124402,-590.55,0.00024657,2]
[363192785,1748619124413,-476.32,0.00024657,2]
[363192786,1748619124423,-550.23,0.00024657,2]
[363192787,1748619124434,-523.75,0.00024657,2]
[363192788,1748619124446,-420.0,0.00024657,2]
[363192789,1748619124456,-420.0,0.00024657,2]
[363192790,1748619124466,-2381.24,0.00024657,2]
[363192791,1748619124477,-1073.24,0.00024657,2]
[363192792,1748619124487,-659.08,0.00024657,2]
[363192793,1748619124497,-480.12953738,0.00024657,2]
[363192794,1748619124508,-535.46,0.00024657,2]
[363192795,1748619124518,-420.0,0.00024657,2]
[363192796,1748619124529,-420.0,0.00024657,2]
[363192797,1748619124542,-569.05,0.00024657,2]
[363192798,1748619124554,-420.0,0.00024657,2]
[363192799,1748619124564,-808.94,0.00024657,2]
[363192800,1748619124574,-1940.81,0.00024657,2]
[363192801,1748619124585,-463.09,0.00024657,2]
[363192802,1748619124596,-627.54,0.00024657,2]
[363192803,1748619124607,-420.0,0.00024657,2]
[363192804,1748619124617,-1123.75,0.00024657,2]
[363192805,1748619124627,-539.2,0.00024657,2]
[363192806,1748619124637,-487.89,0.00024657,2]
[363192807,1748619124647,-420.0,0.00024657,2]
[363192808,1748619124657,-420.0,0.00024657,2]
[363192809,1748619124666,-1124.04,0.00024657,2]
[363192810,1748619124676,-553.55,0.00024657,2]
[363192811,1748619124686,-1448.39,0.00024657,2]
[363192812,1748619124697,-1053.3,0.00024657,2]
[363192813,1748619124706,-584.13,0.00024657,2]
[363192814,1748619124716,-1192.82,0.00024657,2]
[363192815,1748619124726,-613.48,0.00024657,2]
[363192816,1748619124736,-420.0,0.00024657,2]
[363192817,1748619124746,-491.19,0.00024657,2]
[363192818,1748619124756,-466.46,0.00024657,2]
[363192819,1748619124766,-561.99,0.00024657,2]
[363192820,1748619124776,-1678.06,0.00024657,2]
[363192821,1748619124786,-420.0,0.00024657,2]
[363192822,1748619124800,-420.0,0.00024657,2]
[363192823,1748619124814,-1400.08,0.00024657,2]
[363192824,1748619124825,-600.46,0.00024657,2]
[363192825,1748619124834,-626.74,0.00024657,2]
[363192826,1748619124844,-729.19,0.00024657,2]
[363192827,1748619124855,-420.0,0.00024657,2]
[363192828,1748619124865,-1178.79,0.00024657,2]
[363192829,1748619124875,-849.19,0.00024657,2]
[363192830,1748619124886,-1833.03,0.00024657,2]
[363192831,1748619124907,-558.24,0.00024657,2]
[363192832,1748619124930,-633.87,0.00024657,2]
[363192833,1748619124944,-420.0,0.00024657,2]
[363192834,1748619124955,-465.46,0.00024657,2]
[363192835,1748619124966,-1085.24,0.00024657,2]
[363192836,1748619124976,-420.0,0.00024657,2]
[363192837,1748619124987,-3634.58,0.00024657,2]
[363192838,1748619124997,-2016.38,0.00024657,2]
[363192839,1748619125011,-609.8,0.00024657,2]
[363192840,1748619125035,-420.0,0.00024657,2]
[363192841,1748619125071,-1168.36,0.00024657,2]
[363192842,1748619125103,-5361.86,0.00024657,2]
[363192843,1748619125130,-2127.16,0.00024657,2]
[363192844,1748619125153,-1484.06,0.00024657,2]
[363192845,1748619125177,-420.0,0.00024657,2]
[363192846,1748619125200,-1109.67,0.00024657,2]
[363192847,1748619125223,-614.8,0.00024657,2]
[363192848,1748619125233,-575.02,0.00024657,2]
[363192849,1748619125243,-562.44,0.00024657,2]
[363192850,1748619125253,-674.8,0.00024657,2]
[363192851,1748619125263,-420.0,0.00024657,2]
[363192852,1748619125274,-1824.08,0.00024657,2]
[363192853,1748619125284,-420.0,0.00024657,2]
[363192854,1748619125297,-904.81,0.00024657,2]
[363192855,1748619125307,-490.58,0.00024657,2]
[363192856,1748619125316,-7075.98,0.00024657,2]
[363192857,1748619125326,-1096.87,0.00024657,2]
[363192858,1748619125336,-723.21,0.00024657,2]
[363192859,1748619125347,-420.0,0.00024657,2]
[363192860,1748619125357,-1561.66,0.00024657,2]
[363192861,1748619125367,-9812.16,0.00024657,2]
[363192862,1748619125378,-327.00893168,0.00024657,2]
[363192863,1748619125388,-1075.43,0.00024657,2]
[363192864,1748619125399,-622.82,0.00024657,2]
[363192865,1748619125409,-1429.73,0.00024657,2]
[363192866,1748619125420,-915.42,0.00024657,2]
[363192867,1748619125430,-11863.32,0.00024657,2]
[363192868,1748619125440,-1946.94,0.00024657,2]
[363192869,1748619125450,-420.0,0.00024657,2]
[363192870,1748619125460,-594.91,0.00024657,2]
[363192871,1748619125471,-1167.97,0.00024657,2]
[363192872,1748619125481,-797.36,0.00024657,2]
[363192873,1748619125491,-5682.0,0.00024657,2]
[363192874,1748619125501,-524.77,0.00024657,2]
[363192875,1748619125511,-1550.77,0.00024657,2]
[363192876,1748619125521,-974.63,0.00024657,2]
[363192877,1748619125531,-655.87,0.00024657,2]
[363192878,1748619125543,-702.81,0.00024657,2]
[363192879,1748619125554,-600.66,0.00024657,2]
[363192880,1748619125563,-1024.75,0.00024657,2]
[363192881,1748619125573,-609.69,0.00024657,2]
[363192882,1748619125584,-420.0,0.00024657,2]
[363192883,1748619125594,-1076.37,0.00024657,2]
[363192884,1748619125604,-464.14,0.00024657,2]
[363192885,1748619125614,-420.0,0.00024657,2]
[363192886,1748619125624,-1708.68,0.00024657,2]
[363192887,1748619125634,-476.72,0.00024657,2]
[363192888,1748619125644,-726.29,0.00024657,2]
[363192889,1748619125654,-1013.34,0.00024657,2]
[363192890,1748619125664,-850.36,0.00024657,2]
[363192891,1748619125674,-9498.11,0.00024657,2]
[363192892,1748619125683,-829.87,0.00024657,2]
[363192893,1748619125693,-997.73,0.00024657,2]
[363192894,1748619125704,-1568.21,0.00024657,2]
[363192895,1748619125713,-717.62,0.00024657,2]
[363192896,1748619125723,-862.79,0.00024657,2]
[363192897,1748619125733,-2137.81,0.00024657,2]
[363192898,1748619125743,-657.91,0.00024657,2]
[363192899,1748619125753,-985.32,0.00024657,2]
[363192900,1748619125763,-420.0,0.00024657,2]
[363192901,1748619125773,-420.0,0.00024657,2]
[363192902,1748619125783,-541.52,0.00024657,2]
[363192903,1748619125795,-1399.41,0.00024657,2]
[363192904,1748619125809,-1150.73,0.00024657,2]
[363192905,1748619125819,-420.0,0.00024657,2]
[363192906,1748619125830,-2296.95,0.00024657,2]
[363192907,1748619125839,-682.72,0.00024657,2]
[363192908,1748619125850,-795.59,0.00024657,2]
[363192909,1748619125859,-575.16,0.00024657,2]
[363192910,1748619125869,-3116.89,0.00024657,2]
[363192911,1748619125880,-1061.77,0.00024657,2]
[363192912,1748619125890,-1233.85,0.00024657,2]
[363192913,1748619125901,-420.0,0.00024657,2]
[363192914,1748619125910,-11481.25,0.00024657,2]
[363192915,1748619125920,-426.85,0.00024657,2]
[363192916,1748619125930,-1096.82,0.00024657,2]
[363192917,1748619125940,-857.17,0.00024657,2]
[363192918,1748619125950,-1626.19,0.00024657,2]
[363192919,1748619126186,-420.0,0.00024657,2]
[363192920,1748619126197,-634.02,0.00024657,2]
[363192921,1748619126207,-1283.49,0.00024657,2]
[363192922,1748619126217,-1507.45,0.00024657,2]
[363192923,1748619126228,-532.67,0.00024657,2]
[363192924,1748619126238,-441.96,0.00024657,2]
[363192925,1748619126248,-3197.32,0.00024657,2]
[363192926,1748619126258,-1018.57,0.00024657,2]
[363192927,1748619126269,-1122.87,0.00024657,2]
[363192928,1748619126279,-2066.87,0.00024657,2]
[363192929,1748619126290,-489.48,0.00024657,2]
[363192930,1748619126300,-461.31,0.00024657,2]
[363192931,1748619126311,-429.62,0.00024657,2]
[363192932,1748619126322,-3670.01,0.00024657,2]
[363192933,1748619126343,-805.58,0.00024657,2]
[363192934,1748619126365,-1386.9,0.00024657,2]
[363192935,1748619126387,-894.1,0.00024657,2]
[363192936,1748619126409,-2960.24,0.00024657,2]
[363192937,1748619126431,-1963.11,0.00024657,2]
[363192938,1748619126453,-906.34,0.00024657,2]
[363192939,1748619126476,-7808.56,0.00024657,2]
[363192940,1748619126500,-1068.95,0.00024657,2]
[363192941,1748619126525,-975.57,0.00024657,2]
[363192942,1748619126557,-1446.02,0.00024657,2]
[363192943,1748619126588,-5878.54,0.00024657,2]
[363192944,1748619126598,-1309.89,0.00024657,2]
[363192945,1748619126608,-591.35,0.00024657,2]
[363192946,1748619126618,-4452.28,0.00024657,2]
[363192947,1748619126628,-982.46,0.00024657,2]
[363192948,1748619126639,-8491.51,0.00024657,2]
[363192949,1748619126649,-958.4,0.00024657,2]
[363192950,1748619126659,-139506.04,0.00024657,2]
[363192951,1748619126669,-1033.36,0.00024657,2]
[363192952,1748619126679,-1343.03,0.00024657,2]
[363192953,1748619126689,-657.44,0.00024657,2]
[363192954,1748619126699,-420.0,0.00024657,2]
[363192955,1748619126709,-453.46,0.00024657,2]
[363192956,1748619126719,-1623.73,0.00024657,2]
[363192957,1748619126729,-1032.71,0.00024657,2]
[363192958,1748619126739,-3547.4,0.00024657,2]
[363192959,1748619126749,-458.54,0.00024657,2]
[363192960,1748619126760,-982.85,0.00024657,2]
[363192961,1748619126770,-1005.97,0.00024657,2]
[363192962,1748619126780,-37354.79,0.00024657,2]
[363192963,1748619126791,-3804.58,0.00024657,2]
[363192964,1748619126802,-1623.36,0.00024657,2]
[363192965,1748619126814,-1215.02,0.00024657,2]
[363192966,1748619126824,-937.17,0.00024657,2]
[363192967,1748619126833,-753.84,0.00024657,2]
[363192968,1748619126843,-10069.56,0.00024657,2]
[363192969,1748619126854,-2424.56,0.00024657,2]
[363192970,1748619126864,-1684.99,0.00024657,2]
[363192971,1748619126874,-519.37,0.00024657,2]
[363192972,1748619126886,-7476.47,0.00024657,2]
[363192973,1748619126897,-628.41,0.00024657,2]
[363192974,1748619126907,-422.51,0.00024657,2]
[363192975,1748619126917,-868.93,0.00024657,2]
[363192976,1748619126927,-420.0,0.00024657,2]
[363192977,1748619126937,-1449.88,0.00024657,2]
[363192978,1748619126946,-14516.45,0.00024657,2]
[363192979,1748619126957,-4266.56,0.00024657,2]
[363192980,1748619126967,-1548.49,0.00024657,2]
[363192981,1748619126978,-830.49,0.00024657,2]
[363192982,1748619126988,-1978.38,0.00024657,2]
[363192983,1748619126998,-1884.76,0.00024657,2]
[363192984,1748619127008,-542.86,0.00024657,2]
[363192985,1748619127018,-593.44,0.00024657,2]
[363192986,1748619127028,-510.86,0.00024657,2]
[363192987,1748619127038,-559.62,0.00024657,2]
[363192988,1748619127050,-1709.24,0.00024657,2]
[363192989,1748619127060,-2758.03,0.00024657,2]
[363192990,1748619127071,-420.0,0.00024657,2]
[363192991,1748619127081,-29722.14,0.00024657,2]
[363192992,1748619127091,-881.72,0.00024657,2]
[363192993,1748619127102,-1169.42,0.00024657,2]
[363192994,1748619127111,-1406.27,0.00024657,2]
[363192995,1748619127122,-826.36,0.00024657,2]
[363192996,1748619127132,-1544.23,0.00024657,2]
[363192997,1748619127143,-1175.33,0.00024657,2]
[363192998,1748619127153,-3295.64,0.00024657,2]
[363192999,1748619127163,-1761.11,0.00024657,2]
[363193000,1748619127172,-660.71,0.00024657,2]
[363193001,1748619127183,-3573.53,0.00024657,2]
[363193002,1748619127193,-738.85,0.00024657,2]
[363193003,1748619127202,-1034.84,0.00024657,2]
[363193004,1748619127214,-1151.03,0.00024657,2]
[363193005,1748619127224,-9251.83,0.00024657,2]
[363193006,1748619127234,-420.0,0.00024657,2]
[363193007,1748619127244,-772.03,0.00024657,2]
[363193008,1748619127254,-490.63,0.00024657,2]
[363193009,1748619127264,-720.83,0.00024657,2]
[363193010,1748619127274,-1360.32,0.00024657,2]
[363193011,1748619127283,-723.88,0.00024657,2]
[363193012,1748619127294,-567.24,0.00024657,2]
[363193013,1748619127304,-2486.32,0.00024657,2]
[363193014,1748619127315,-4470.51,0.00024657,2]
[363193015,1748619127324,-1446.13,0.00024657,2]
[363193016,1748619127334,-2304.2,0.00024657,2]
[363193017,1748619127344,-1389.12,0.00024657,2]
[363193018,1748619127354,-1054.71,0.00024657,2]
[363193019,1748619127363,-990.01,0.00024657,2]
[363193020,1748619127373,-1680.37,0.00024657,2]
[363193021,1748619127384,-521.76,0.00024657,2]
[363193022,1748619127393,-4095.54,0.00024657,2]
[363193023,1748619127403,-1486.66,0.00024657,2]
[363193024,1748619127413,-1336.51,0.00024657,2]
[363193025,1748619127423,-1487.37,0.00024657,2]
[363193026,1748619127433,-2771.35,0.00024657,2]
[363193027,1748619127443,-4189.49,0.00024657,2]
[363193028,1748619127454,-629.45,0.00024657,2]
[363193029,1748619127464,-2997.14,0.00024657,2]
[363193030,1748619127474,-1125.7,0.00024657,2]
[363193031,1748619127484,-1026.77,0.00024657,2]
[363193032,1748619127494,-614.16,0.00024657,2]